fUSD/lending_fUSD_20251028
["ID","MTS","AMOUNT","RATE_DAILY","PERIOD"]
[392560264,1761666599933,-912.697164,0.000299,31]
[392560265,1761666600006,-912.697164,0.000299,31]
[392560266,1761666600080,-912.697164,0.000299,31]
[392560267,1761666600158,-912.697164,0.000299,31]
[392560268,1761666600244,-290.47729,0.000299,31]
[392560269,1761666600325,-151.0,0.000299,31]
[392560270,1761666600566,-151.0,0.000299,31]
[392560271,1761666600637,-151.0,0.000299,31]
[392560272,1761666600703,-151.0,0.000299,31]
[392560273,1761666600770,-151.0,0.000299,31]
[392560274,1761666600839,-151.0,0.000299,31]
[392560275,1761666600907,-151.0,0.000299,31]
[392560276,1761666600975,-151.0,0.000299,31]
[392560277,1761666601041,-151.0,0.000299,31]
[392560278,1761666601103,-151.0,0.000299,31]
[392560279,1761666601169,-151.0,0.000299,31]
[392560280,1761666601239,-151.0,0.000299,31]
[392560281,1761666601308,-151.0,0.000299,31]
[392560282,1761666601374,-151.0,0.000299,31]
[392560283,1761666601437,-159.102678,0.000299,31]
[392560284,1761666601502,-159.102678,0.000299,31]
[392560285,1761666601565,-151.0,0.000299,31]
[392560286,1761666601632,-159.102678,0.000299,31]
[392560287,1761666601705,-151.0,0.000299,31]
[392560288,1761666601780,-151.0,0.000299,31]
[392560289,1761666601848,-167.836799,0.000299,31]
[392560290,1761666601919,-167.836799,0.000299,31]
[392560291,1761666601983,-151.0,0.000299,31]
[392560292,1761666602049,-151.0,0.000299,31]
[392560293,1761666602115,-167.836799,0.000299,31]
[392560294,1761666602184,-167.836799,0.000299,31]
[392560295,1761666602262,-160.301363,0.000299,31]
[392560296,1761666602336,-151.0,0.000299,31]
[392560297,1761666602405,-151.0,0.000299,31]
[392560298,1761666602472,-162.910551,0.000299,31]
[392560299,1761666602537,-151.0,0.000299,31]
[392560300,1761666602603,-151.0,0.000299,31]
[392560301,1761666602671,-241.94133,0.000299,31]
[392560302,1761666602737,-151.0,0.000299,31]
[392560303,1761666602804,-151.0,0.000299,31]
[392560304,1761666602873,-151.0,0.000299,31]
[392560305,1761666602943,-151.0,0.000299,31]
[392560306,1761666603018,-151.0,0.000299,31]
[392560307,1761666603114,-159.699745,0.000299,31]
[392560308,1761666603201,-151.0,0.000299,31]
[392560309,1761666603291,-272.003358,0.000299,31]
[392560310,1761666603380,-151.0,0.000299,31]
[392560311,1761666603469,-272.003358,0.000299,31]
[392560312,1761666603557,-272.003358,0.000299,31]
[392560313,1761666603657,-272.003358,0.000299,31]
[392560314,1761666603744,-152.957262,0.000299,31]
[392560315,1761666603831,-151.0,0.000299,31]
[392560316,1761666603921,-258.269906,0.000299,31]
[392560317,1761666604013,-796.229553,0.000299,31]
[392560318,1761666604104,-796.229553,0.000299,31]
[392560319,1761666604190,-153.643173,0.000299,31]
[392560320,1761666604281,-221.514363,0.000299,31]
[392560321,1761666604370,-796.229553,0.000299,31]
[392560322,1761666604460,-151.0,0.000299,31]
[392560323,1761666604542,-796.229553,0.000299,31]
[392560324,1761666604619,-151.0,0.000299,31]
[392560325,1761666604695,-221.514363,0.000299,31]
[392560326,1761666604773,-160.042833,0.000299,31]
[392560327,1761666604850,-221.514363,0.000299,31]
[392560328,1761666604934,-151.0,0.000299,31]
[392560329,1761666605015,-221.514363,0.000299,31]
[392560330,1761666605096,-160.042833,0.000299,31]
[392560331,1761666605170,-160.042833,0.000299,31]
[392560332,1761666605246,-151.0,0.000299,31]
[392560333,1761666605327,-160.042833,0.000299,31]
[392560334,1761666605409,-151.0,0.000299,31]
[392560335,1761666605487,-151.0,0.000299,31]
[392560336,1761666605568,-189.667482,0.000299,30]
[392560337,1761666605650,-189.667482,0.000299,30]
[392560338,1761666605728,-189.667482,0.000299,30]
[392560339,1761666605801,-189.667482,0.000299,30]
[392560340,1761666605876,-151.0,0.000299,31]
[392560341,1761666605960,-151.0,0.000299,31]
[392560342,1761666606037,-220.696779,0.000299,31]
[392560343,1761666606120,-220.696779,0.000299,31]
[392560344,1761666606203,-220.696779,0.000299,31]
[392560345,1761666606283,-220.696775,0.000299,31]
[392560346,1761666606364,-151.0,0.000299,31]
[392560347,1761666606446,-151.0,0.000299,31]
[392560348,1761666606530,-151.0,0.000299,31]
[392560349,1761666606611,-151.0,0.000299,31]
[392560350,1761666606687,-151.0,0.000299,31]
[392560351,1761666606763,-151.0,0.000299,31]
[392560352,1761666606843,-206.007068,0.000299,31]
[392560353,1761666606918,-151.0,0.000299,31]
[392560354,1761666606990,-151.0,0.000299,31]
[392560355,1761666607065,-151.0,0.0003,31]
[392560356,1761666607135,-151.0,0.0003,31]
[392560357,1761666607201,-235.16643,0.0003,31]
[392560358,1761666607270,-151.0,0.0003,31]
[392560359,1761666607339,-151.0,0.0003,31]
[392560360,1761666607412,-241.898979,0.0003,31]
[392560361,1761666607480,-233.799804,0.0003,31]
[392560362,1761666607552,-151.0,0.0003,31]
[392560363,1761666607623,-275.180821,0.0003,31]
[392560364,1761666607698,-151.0,0.0003,31]
[392560365,1761666607775,-151.0,0.0003,31]
[392560366,1761666607850,-151.0,0.0003,31]
[392560367,1761666607932,-151.0,0.0003,31]
[392560368,1761666608012,-151.0,0.0003,31]
[392560369,1761666608094,-165.083844,0.0003,31]
[392560370,1761666608182,-165.083844,0.0003,31]
[392560371,1761666608274,-165.083844,0.0003,31]
[392560372,1761666608374,-165.083844,0.0003,31]
[392560373,1761666608463,-151.0,0.0003,31]
[392560374,1761666608754,-912.697164,0.0003,31]
[392560375,1761666608829,-912.697164,0.0003,31]
[392560376,1761666608907,-912.697164,0.0003,31]
[392560377,1761666608991,-912.697164,0.0003,31]
[392560378,1761666609070,-151.0,0.0003,31]
[392560379,1761666609153,-151.0,0.0003,31]
[392560380,1761666609237,-151.0,0.0003,31]
[392560381,1761666609319,-212.099183,0.0003,31]
[392560382,1761666609395,-151.0,0.0003,31]
[392560383,1761666609470,-151.0,0.0003,31]
[392560384,1761666609541,-236.754885,0.0003,31]
[392560385,1761666609612,-151.0,0.0003,31]
[392560386,1761666609690,-151.0,0.0003,31]
[392560387,1761666609768,-151.0,0.0003,31]
[392560388,1761666609849,-151.0,0.0003,31]
[392560389,1761666609932,-151.0,0.0003,31]
[392560390,1761666610011,-151.0,0.0003,31]
[392560391,1761666610085,-159.102678,0.0003,31]
[392560392,1761666610164,-159.102678,0.0003,31]
[392560393,1761666610247,-159.102678,0.0003,31]
[392560394,1761666610340,-151.0,0.0003,31]
[392560395,1761666610423,-159.102678,0.0003,31]
[392560396,1761666610499,-151.0,0.0003,31]
[392560397,1761666610577,-151.0,0.0003,31]
[392560398,1761666610662,-167.836799,0.0003,31]
[392560399,1761666610741,-167.836799,0.0003,31]
[392560400,1761666610812,-151.0,0.0003,31]
[392560401,1761666610894,-151.0,0.0003,31]
[392560402,1761666610975,-167.836799,0.0003,31]
[392560403,1761666611051,-167.836799,0.0003,31]
[392560404,1761666611123,-151.0,0.0003,31]
[392560405,1761666611200,-170.414086,0.0003,31]
[392560406,1761666611278,-151.0,0.0003,31]
[392560407,1761666611361,-151.0,0.0003,31]
[392560408,1761666611441,-151.0,0.0003,31]
[392560409,1761666611517,-151.0,0.0003,31]
[392560410,1761666611595,-151.0,0.0003,31]
[392560411,1761666611668,-151.0,0.0003,31]
[392560412,1761666611744,-272.003358,0.0003,31]
[392560413,1761666611815,-151.0,0.0003,31]
[392560414,1761666611889,-272.003358,0.0003,31]
[392560415,1761666611970,-272.003358,0.0003,31]
[392560416,1761666612040,-272.003358,0.0003,31]
[392560417,1761666612112,-151.0,0.0003,31]
[392560418,1761666612191,-796.229553,0.0003,31]
[392560419,1761666612267,-796.229553,0.0003,31]
[392560420,1761666612337,-221.514363,0.0003,31]
[392560421,1761666612409,-796.229553,0.0003,31]
[392560422,1761666612487,-151.0,0.0003,31]
[392560423,1761666612567,-796.229553,0.0003,31]
[392560424,1761666612639,-151.0,0.0003,31]
[392560425,1761666612717,-221.514363,0.0003,31]
[392560426,1761666612786,-160.042833,0.0003,31]
[392560427,1761666612861,-221.514363,0.0003,31]
[392560428,1761666612937,-297.839477,0.0003,31]
[392560429,1761666613021,-221.514363,0.0003,31]
[392560430,1761666613108,-160.042833,0.0003,31]
[392560431,1761666613197,-160.042833,0.0003,31]
[392560432,1761666613285,-151.0,0.0003,31]
[392560433,1761666613372,-160.042833,0.0003,31]
[392560434,1761666613459,-151.0,0.0003,31]
[392560435,1761666613542,-151.0,0.0003,31]
[392560436,1761666613622,-189.667482,0.0003,30]
[392560437,1761666613705,-189.667482,0.0003,30]
[392560438,1761666613782,-189.667482,0.0003,30]
[392560439,1761666613859,-189.667482,0.0003,30]
[392560440,1761666613934,-151.0,0.0003,31]
[392560441,1761666614006,-266.093382,0.00030136,31]
[392560442,1761666614077,-194.843385,0.00030136,31]
[392560443,1761666614156,-156.14015,0.00030136,31]
[392560444,1761666614232,-151.0,0.00030136,31]
[392560445,1761666614305,-151.0,0.00030136,31]
[392560446,1761666614381,-151.0,0.00030136,31]
[392560447,1761666614454,-151.0,0.00030136,31]
[392560448,1761666614526,-151.0,0.00030136,31]
[392560449,1761666614597,-151.0,0.00030136,31]
[392560450,1761666614668,-151.0,0.00030136,31]
[392560451,1761666614737,-165.083844,0.00030136,31]
[392560452,1761666614811,-165.083844,0.00030136,31]
[392560453,1761666614888,-165.083844,0.00030136,31]
[392560454,1761666614959,-165.083844,0.00030136,31]
[392560455,1761666615026,-151.0,0.00030136,31]
[392560456,1761666615095,-912.697164,0.00030136,31]
[392560457,1761666615161,-912.697164,0.00030136,31]
[392560458,1761666615231,-912.697164,0.00030136,31]
[392560459,1761666615305,-912.697164,0.00030136,31]
[392560460,1761666615389,-151.0,0.00030136,31]
[392560461,1761666615461,-151.0,0.00030136,31]
[392560462,1761666615537,-151.0,0.00030136,31]
[392560463,1761666615615,-151.0,0.00030136,31]
[392560464,1761666615691,-151.0,0.00030136,31]
[392560465,1761666615765,-151.0,0.00030136,31]
[392560466,1761666615841,-167.706809,0.00030136,31]
[392560467,1761666615920,-800.0,0.00030136,30]
[392560468,1761666615997,-800.0,0.00030136,30]
[392560469,1761666616066,-800.0,0.00030136,30]
[392560470,1761666616141,-800.0,0.00030136,30]
[392560471,1761666616217,-626.46945218,0.00030136,30]
[392560472,1761666616292,-151.0,0.00030136,31]
[392560473,1761666616374,-151.0,0.00030136,31]
[392560474,1761666616450,-151.0,0.00030136,31]
[392560475,1761666616522,-159.102678,0.00030136,31]
[392560476,1761666616595,-159.102678,0.00030136,31]
[392560477,1761666616831,-159.102678,0.00030136,31]
[392560478,1761666616915,-151.0,0.00030136,31]
[392560479,1761666616997,-159.102678,0.00030136,31]
[392560480,1761666617071,-151.0,0.00030136,31]
[392560481,1761666617153,-151.0,0.00030136,31]
[392560482,1761666617257,-167.836799,0.00030136,31]
[392560483,1761666617376,-167.836799,0.00030136,31]
[392560484,1761666617457,-151.0,0.00030136,31]
[392560485,1761666617529,-151.0,0.00030136,31]
[392560486,1761666617604,-167.836799,0.00030136,31]
[392560487,1761666617675,-167.836799,0.00030136,31]
[392560488,1761666617752,-151.0,0.00030136,31]
[392560489,1761666617827,-151.0,0.00030136,31]
[392560490,1761666617906,-151.0,0.00030136,31]
[392560491,1761666617980,-151.0,0.00030136,31]
[392560492,1761666618055,-151.0,0.00030136,31]
[392560493,1761666618129,-161.30106,0.00030136,31]
[392560494,1761666618208,-151.0,0.00030136,31]
[392560495,1761666618286,-272.003358,0.00030136,31]
[392560496,1761666618367,-166.314309,0.00030136,31]
[392560497,1761666618461,-272.003358,0.00030136,31]
[392560498,1761666618558,-272.003358,0.00030136,31]
[392560499,1761666618652,-272.003358,0.00030136,31]
[392560500,1761666618743,-200.157603,0.00030136,31]
[392560501,1761666618836,-796.229553,0.00030136,31]
[392560502,1761666618926,-796.229553,0.00030136,31]
[392560503,1761666619018,-221.514363,0.00030136,31]
[392560504,1761666619106,-796.229553,0.00030136,31]
[392560505,1761666619195,-151.0,0.00030136,31]
[392560506,1761666619287,-796.229553,0.00030136,31]
[392560507,1761666619374,-151.0,0.00030136,31]
[392560508,1761666619458,-221.514363,0.00030136,31]
[392560509,1761666619538,-221.514363,0.00030136,31]
[392560510,1761666619620,-160.042833,0.00030136,31]
[392560511,1761666619700,-221.514363,0.00030136,31]
[392560512,1761666619775,-160.042833,0.00030136,31]
[392560513,1761666619858,-160.042833,0.00030136,31]
[392560514,1761666619934,-151.0,0.00030136,31]
[392560515,1761666620005,-160.042833,0.00030136,31]
[392560516,1761666620076,-151.0,0.00030136,31]
[392560517,1761666620156,-189.667482,0.00030136,30]
[392560518,1761666620237,-189.667482,0.00030136,30]
[392560519,1761666620316,-189.667482,0.00030136,30]
[392560520,1761666620392,-189.667482,0.00030136,30]
[392560521,1761666620471,-166.66,0.00030239,30]
[392560522,1761666620545,-272.930143,0.0003041,31]
[392560523,1761666620617,-291.607842,0.0003041,31]
[392560524,1761666620688,-177.154163,0.0003041,31]
[392560525,1761666620761,-151.0,0.0003041,31]
[392560526,1761666620831,-151.0,0.0003041,31]
[392560527,1761666620906,-151.0,0.0003041,31]
[392560528,1761666620976,-165.083844,0.0003041,31]
[392560529,1761666621046,-165.083844,0.0003041,31]
[392560530,1761666621112,-165.083844,0.0003041,31]
[392560531,1761666621178,-165.083834,0.0003041,31]
[392560532,1761666621246,-218.761857,0.0003041,31]
[392560533,1761666621313,-912.697164,0.0003041,31]
[392560534,1761666621380,-912.697164,0.0003041,31]
[392560535,1761666621446,-912.697164,0.0003041,31]
[392560536,1761666621518,-912.697171,0.0003041,31]
[392560537,1761666621592,-151.0,0.0003041,31]
[392560538,1761666621664,-151.0,0.0003041,31]
[392560539,1761666621733,-151.0,0.0003041,31]
[392560540,1761666621800,-151.0,0.0003041,31]
[392560541,1761666621870,-151.0,0.0003041,31]
[392560542,1761666621947,-151.0,0.0003041,31]
[392560543,1761666622018,-151.0,0.0003041,31]
[392560544,1761666622083,-151.0,0.0003041,31]
[392560545,1761666622153,-159.102678,0.0003041,31]
[392560546,1761666622222,-159.102678,0.0003041,31]
[392560547,1761666622290,-159.102678,0.0003041,31]
[392560548,1761666622356,-159.102677,0.0003041,31]
[392560549,1761666622420,-151.0,0.0003041,31]
[392560550,1761666622484,-151.0,0.0003041,31]
[392560551,1761666622551,-167.836799,0.0003041,31]
[392560552,1761666622622,-167.836799,0.0003041,31]
[392560553,1761666622688,-272.76761,0.0003041,31]
[392560554,1761666622760,-151.0,0.0003041,31]
[392560555,1761666622829,-167.836799,0.0003041,31]
[392560556,1761666622906,-167.836796,0.0003041,31]
[392560557,1761666622975,-151.0,0.0003041,31]
[392560558,1761666623046,-151.0,0.0003041,31]
[392560559,1761666623115,-151.0,0.0003041,31]
[392560560,1761666623191,-151.0,0.0003041,31]
[392560561,1761666623269,-151.0,0.0003041,31]
[392560562,1761666623345,-272.003358,0.0003041,31]
[392560563,1761666623420,-272.003358,0.0003041,31]
[392560564,1761666623494,-272.003358,0.0003041,31]
[392560565,1761666623561,-272.00336,0.0003041,31]
[392560566,1761666623628,-796.229553,0.0003041,31]
[392560567,1761666623695,-796.229553,0.0003041,31]
[392560568,1761666623762,-221.514363,0.0003041,31]
[392560569,1761666623836,-796.229553,0.0003041,31]
[392560570,1761666623915,-151.0,0.0003041,31]
[392560571,1761666623991,-796.229554,0.0003041,31]
[392560572,1761666624063,-151.0,0.0003041,31]
[392560573,1761666624139,-221.514363,0.0003041,31]
[392560574,1761666624218,-221.514363,0.0003041,31]
[392560575,1761666624290,-160.042833,0.0003041,31]
[392560576,1761666624363,-221.514372,0.0003041,31]
[392560577,1761666624436,-160.042833,0.0003041,31]
[392560578,1761666624504,-160.042833,0.0003041,31]
[392560579,1761666624730,-160.042825,0.0003041,31]
[392560580,1761666624809,-189.667482,0.0003041,30]
[392560581,1761666624892,-189.667482,0.0003041,30]
[392560582,1761666624971,-189.667482,0.0003041,30]
[392560583,1761666625044,-189.667483,0.0003041,30]
[392560584,1761666625124,-151.0,0.00030606,31]
[392560585,1761666625197,-169.994138,0.00030606,31]
[392560587,1761666625289,-652.13,0.00030685,30]
[392560588,1761666625363,-2405.8667464,0.00030888,60]
[392560589,1761666625453,-1000.0,0.00031057,30]
[392560590,1761666625544,-328.26,0.000314,30]
[392560591,1761666625644,-3869318.22435423,0.00031507,60]
[392560595,1761666632664,-277.35679052,0.00028364,2]
[392560597,1761666632673,-4.52016648,0.00028648,2]
[392560600,1761666638232,-295.47983352,0.00028648,2]
[392560601,1761666638242,-204.97771888,0.00028648,2]
[392560607,1761666640386,-180.39641052,0.00028648,2]
[392560608,1761666640395,-200.0,0.00028649,2]
[392560609,1761666640405,-80.16067568,0.00028649,2]
[392560611,1761666640927,-419.83932432,0.00028649,2]
[392560612,1761666640937,-500.0,0.00028649,2]
[392560613,1761666640946,-40.25935416,0.00028649,2]
[392560614,1761666640957,-459.74064584,0.00028649,2]
[392560615,1761666640967,-500.0,0.00028649,2]
[392560616,1761666640976,-500.0,0.00028649,2]
[392560617,1761666640986,-500.0,0.00028649,2]
[392560618,1761666640995,-500.0,0.00028649,2]
[392560619,1761666641005,-500.0,0.00028649,2]
[392560620,1761666641014,-500.0,0.00028649,2]
[392560621,1761666641023,-500.0,0.00028649,2]
[392560622,1761666641033,-500.0,0.00028649,2]
[392560623,1761666641043,-322.6107,0.00028649,2]
[392560624,1761666641052,-500.0,0.000287,2]
[392560625,1761666641063,-510.48290999,0.000287,5]
[392560626,1761666641072,-500.0,0.000287,5]
[392560627,1761666641081,-18121.62629064,0.00028707,2]
[392560628,1761666641092,-2266.92904996,0.00028707,2]
[392560629,1761666641102,-26564.995444,0.00028707,2]
[392560630,1761666641111,-500.0,0.00028745,7]
[392560631,1761666641121,-500.0,0.00028767,2]
[392560633,1761666641131,-1100.0,0.00029019,7]
[392560634,1761666641141,-2731.66769006,0.00029026,2]
[392560635,1761666641151,-150.0,0.00029143,7]
[392560637,1761666641161,-200.0,0.00029197,2]
[392560639,1761666641170,-200.0,0.00029197,2]
[392560641,1761666641179,-500.0,0.00029248,2]
[392560643,1761666641188,-512.52179248,0.00029391,3]
[392560645,1761666641198,-500.0,0.00029391,3]
[392560647,1761666641207,-500.0,0.00029391,3]
[392560649,1761666641216,-500.0,0.00029391,3]
[392560651,1761666641225,-500.0,0.00029391,3]
[392560652,1761666641235,-500.0,0.00029391,3]
[392560653,1761666641244,-500.0,0.00029391,3]
[392560654,1761666641253,-500.0,0.00029391,3]
[392560655,1761666641265,-500.0,0.00029391,3]
[392560656,1761666641276,-500.0,0.00029391,3]
[392560657,1761666641285,-385.5136852,0.00029459,2]
[392560658,1761666641295,-450.21249015,0.0002946,2]
[392560659,1761666641308,-3190.79715453,0.0002946,2]
[392560660,1761666641317,-168.0,0.00029466,2]
[392560661,1761666641327,-250.0,0.00029487,2]
[392560662,1761666641336,-191.82738,0.000295,2]
[392560663,1761666641347,-500.0,0.00029567,7]
[392560664,1761666641356,-10317.64025853,0.00029585,2]
[392560665,1761666641366,-500.0,0.00029587,3]
[392560666,1761666641375,-198.9035517,0.00029587,3]
[392560667,1761666641385,-500.0,0.00029587,3]
[392560668,1761666641395,-500.0,0.00029587,3]
[392560669,1761666641404,-500.0,0.00029587,3]
[392560670,1761666641413,-7750.39148895,0.00029599,2]
[392560671,1761666641423,-300.0,0.000296,10]
[392560672,1761666641432,-200.0,0.00029661,2]
[392560673,1761666641442,-200.0,0.00029663,7]
[392560674,1761666641451,-200.0,0.00029663,7]
[392560675,1761666641460,-500.0,0.00029663,7]
[392560676,1761666641470,-150.0,0.00029663,7]
[392560677,1761666641480,-150.0,0.00029663,7]
[392560678,1761666641490,-150.0,0.00029663,7]
[392560679,1761666641499,-300.0,0.00029663,7]
[392560680,1761666641510,-500.0,0.00029663,7]
[392560681,1761666641520,-500.0,0.00029663,7]
[392560682,1761666641530,-388.0,0.00029663,7]
[392560683,1761666641539,-500.0,0.00029663,7]
[392560684,1761666641550,-150.0,0.00029663,2]
[392560685,1761666641560,-150.0,0.00029663,7]
[392560686,1761666641569,-500.0,0.00029663,7]
[392560687,1761666641579,-150.0,0.00029663,2]
[392560688,1761666641588,-150.0,0.00029663,7]
[392560689,1761666641598,-200.0,0.00029663,7]
[392560690,1761666641607,-150.0,0.00029663,7]
[392560691,1761666641617,-500.0,0.00029689,3]
[392560692,1761666641627,-236.72059436,0.00029689,3]
[392560693,1761666641638,-513.3628881,0.00029689,3]
[392560694,1761666641647,-516.79448529,0.00029698,2]
[392560695,1761666641657,-179.52408359,0.00029699,2]
[392560696,1761666641666,-449.50352321,0.00029699,3]
[392560697,1761666641676,-1000.0,0.00029699,7]
[392560698,1761666641686,-700.0,0.000297,10]
[392560699,1761666641697,-730.2,0.00029713,2]
[392560700,1761666641706,-287.61899177,0.00029733,2]
[392560701,1761666641718,-1000.0,0.00029741,2]
[392560702,1761666641727,-891.8528,0.00029741,2]
[392560703,1761666641738,-2500.0,0.00029741,2]
[392560704,1761666641747,-200.0,0.00029745,2]
[392560705,1761666641757,-200.0,0.00029745,2]
[392560706,1761666641767,-13962.11249569,0.0002978,2]
[392560707,1761666641776,-252.6314,0.0002978,2]
[392560708,1761666641786,-421.21744929,0.00029781,2]
[392560709,1761666641798,-162.89945171,0.0002979,15]
[392560710,1761666641807,-5000.0,0.00029791,2]
[392560711,1761666641817,-254.77747961,0.00029791,2]
[392560712,1761666641827,-254.77747961,0.00029796,2]
[392560713,1761666641836,-7750.39148888,0.000298,2]
[392560714,1761666641846,-500.0,0.000298,7]
[392560715,1761666641856,-200.0,0.000298,7]
[392560716,1761666641866,-200.0,0.000298,7]
[392560717,1761666641875,-200.0,0.000298,7]
[392560718,1761666641885,-300.0,0.000298,7]
[392560719,1761666641895,-500.0,0.000298,7]
[392560720,1761666641908,-150.0,0.000298,2]
[392560721,1761666641919,-500.0,0.000298,7]
[392560722,1761666641929,-150.0,0.000298,7]
[392560723,1761666641940,-200.0,0.000298,7]
[392560724,1761666641949,-564.29521402,0.000298,2]
[392560725,1761666641960,-162.28100394,0.000298,2]
[392560726,1761666641971,-1232.3885353,0.000298,2]
[392560727,1761666641983,-1100.0,0.000298,10]
[392560728,1761666641993,-1059.87772171,0.000298,2]
[392560729,1761666642004,-254.77747961,0.000298,2]
[392560730,1761666642013,-1000.0,0.00029836,7]
[392560731,1761666642024,-520.64428885,0.0002984,3]
[392560732,1761666642033,-500.0,0.0002984,3]
[392560733,1761666642043,-500.0,0.0002984,3]
[392560734,1761666642053,-1100.0,0.00029841,7]
[392560735,1761666642062,-41355.82457026,0.00029841,2]
[392560736,1761666642072,-203.0,0.00029842,2]
[392560737,1761666642083,-500.0,0.0002987,2]
[392560738,1761666642092,-502.35275358,0.00029873,5]
[392560739,1761666642101,-500.0,0.00029873,5]
[392560740,1761666642111,-500.0,0.00029873,2]
[392560741,1761666642121,-500.0,0.00029873,5]
[392560742,1761666642131,-500.0,0.0002988,3]
[392560743,1761666642140,-500.0,0.0002988,3]
[392560744,1761666642150,-500.0,0.0002988,3]
[392560745,1761666642159,-59411.5804148,0.0002988,3]
[392560746,1761666642168,-33917.00031348,0.00029881,3]
[392560747,1761666642181,-574.05,0.00029881,3]
[392560750,1761666643852,-571.7542,0.00028648,2]
[392560751,1761666643862,-1186.0,0.00029578,2]
[392560752,1761666643871,-54626.32030872,0.00029881,3]
[392560753,1761666643880,-5414.88586813,0.00029881,3]
[392560754,1761666643889,-203.28,0.00029882,14]
[392560755,1761666643899,-5414.88586813,0.00029889,3]
[392560756,1761666643908,-500.0,0.00029889,3]
[392560757,1761666643918,-500.0,0.0002989,15]
[392560758,1761666643929,-500.0,0.0002989,3]
[392560759,1761666643938,-151.0,0.0002989,15]
[392560760,1761666643949,-67576.11209893,0.0002989,3]
[392560792,1761666680559,315.0,0.000315,120]
[392560793,1761666798961,500.0,0.00030194,120]
[392560797,1761667083062,2500.0,0.0002959,120]
[392560798,1761667084244,195.0,0.0002959,120]
[392560800,1761667148487,4000.0,0.0002948,120]
[392560804,1761667251737,324.0,0.000315,120]
[392560805,1761667277662,324.71543945,0.000315,120]
[392560810,1761667417107,-151.0,0.0002989,31]
[392560811,1761667417172,-151.0,0.0002989,31]
[392560812,1761667417241,-151.0,0.000299,31]
[392560813,1761667417310,-151.0,0.000299,31]
[392560814,1761667417384,-151.0,0.000299,31]
[392560815,1761667417455,-151.0,0.000299,31]
[392560816,1761667417524,-155.509095,0.000299,31]
[392560817,1761667417595,-164.605312,0.000299,31]
[392560818,1761667417661,-151.0,0.000299,31]
[392560819,1761667417723,-151.0,0.000299,31]
[392560820,1761667417787,-286.572705,0.000299,31]
[392560821,1761667417855,-151.0,0.000299,30]
[392560822,1761667417926,-191.010954,0.000299,31]
[392560823,1761667417998,-151.0,0.000299,31]
[392560824,1761667418067,-151.0,0.000299,31]
[392560825,1761667418131,-153.147068,0.000299,31]
[392560826,1761667418201,-151.0,0.000299,31]
[392560827,1761667418276,-151.0,0.000299,31]
[392560828,1761667418349,-151.0,0.000299,31]
[392560829,1761667418420,-151.0,0.000299,31]